Cogmind - Beta 15 @@@ ROGUE MODE // 2025.06.05 @ 10:23:16 Player: Fleshy Vegetable Bird Result: Destroyed by A7-CZD(R) with Subdweller Machine Gun Performance ------------- Evolutions (0) 0 Regions Visited (2) 400 Robots Destroyed (26) 130 Value Destroyed (574) 574 Prototype IDs (0) 0 Alien Tech Used (0) 0 Bonus (0) 0 TOTAL SCORE: 1104 Bonus ------- None Cogmind --------- Core Integrity 0/250 Matter 162/300 Energy 200/200 System Corruption 0% Temperature Cool (0) Movement Rolling (80) Location -10/Subcaves Parts ------- > --- POWER (1) -------- Subdweller Power Source > --- PROPULSION (2) --- Wheel > --- UTILITY (2) ------ (None) > --- WEAPON (2) ------- Beam Rifle > --- INVENTORY (5) ---- (None) Peak State ------------ > --- POWER ------------ Improved Ion Engine > --- PROPULSION ------- Wheel Wheel > --- UTILITY ---------- High-capacity Storage Unit Seismic Detector > --- WEAPON ----------- Grenade Launcher Maul > --- INVENTORY -------- Ion Engine Improved Ion Engine Subdweller Power Source Wheel Wheel Wheel High-capacity Storage Unit Scrap Shield Small Laser Beam Rifle Beam Rifle Particle Gun Assault Rifle [Rating: 11] Favorites ----------- Power Improved Ion Engine Engine Improved Ion Engine Propulsion Wheel Wheel Wheel Utility Seismic Detector Device Seismic Detector Storage Medium Storage Unit Protection Scrap Shield Weapon Assault Rifle Energy Gun Beam Rifle Ballistic Gun Assault Rifle Launcher Grenade Launcher Impact Weapon Maul Build | -11 -10 -10 ------- Run | Yrd Mat Sub Slots Evolved . | . . . Power . | . . . Propulsion . | . . . Utility . | . . . Weapon . | . . . Parts Attached 22 | 7 7 8 Power 4 | 1 1 2 Engine 4 | 1 1 2 Core . | . . . Reactor . | . . . Propulsion 7 | 3 1 3 Treads . | . . . Leg . | . . . Wheel 7 | 3 1 3 Hover . | . . . Flight . | . . . Utility 5 | 1 3 1 Device 1 | . 1 . Storage 3 | 1 2 . Processor . | . . . Hackware . | . . . Protection 1 | . . 1 Artifact . | . . . Weapon 6 | 2 2 2 Energy Gun 3 | 1 1 1 Energy Cannon . | . . . Ballistic Gun 1 | 1 . . Ballistic Cannon . | . . . Launcher 1 | . 1 . Special Weapon . | . . . Impact Weapon 1 | . . 1 Slashing Weapon . | . . . Piercing Weapon . | . . . Special Melee Weapon . | . . . Unidentified Prototypes . | . . . Parts Lost 11 | . 1 10 Power 2 | . . 2 Propulsion 5 | . 1 4 Utility 1 | . . 1 Weapon 3 | . . 3 Highest Loss Streak 8 | . 1 8 To Critical Strikes . | . . . Average Backups 7 | 4 8 8 Power 1 | . 1 1 Propulsion 3 | 1 3 2 Utility . | . . . Weapon 3 | 1 3 3 Tool/Special . | . . . Unused Backups 9 | 2 3 4 Power 2 | . 1 1 Propulsion 2 | 2 . . Utility 1 | . . 1 Weapon 4 | . 2 2 Tool/Special . | . . . Average Slot Usage (%) 93 | . 99 81 Engine 13 | . 14 12 Wheel 26 | . 27 22 Device 11 | . 13 7 Storage 12 | . 14 7 Protection 1 | . . 3 Energy Gun 8 | . 10 4 Ballistic Gun 11 | . 13 7 Launcher 6 | . 4 11 Peak Build Rating 11 | 6 10 11 Average Rating 8 | 5 9 8 On Entrance 5 | . 6 9 Naked Turns . | . . . Heaviest Build 54 | 11 53 54 Greatest Support 26 | 26 20 20 Greatest Overweight (x) 2 | 1 2 2 Average Overweight (x) 1 | . 1 1 Largest Inventory Capacity 20 | 8 20 20 Average Capacity 11 | 7 12 12 Most Carried 14 | 8 11 14 Average Carried 7 | 4 8 8 Final Capacity 20 | 8 20 5 Final Carried 11 | 8 11 . Class Distribution -------------------- 100% | Mutant Dominant Class ---------------- Mutant | -10/Materials Mutant | -10/Subcaves Resources | -11 -10 -10 ----------- Run | Yrd Mat Sub Matter Collected 634 | 300 295 39 Remotely . | . . . Salvage Created 788 | 190 524 74 Parts 50 | 20 29 1 Haulers Intercepted 1 | . 1 . Recyclers Shooed 3 | . 3 . Parts Field Recycled . | . . . Retrieved Matter . | . . . Parts Self-Destructed . | . . . Prevented . | . . . Kills | -11 -10 -10 ------- Run | Yrd Mat Sub Combat Hostiles Destroyed 12 | . 9 3 Guns 6 | . 5 1 AOE 6 | . 4 2 Classes Destroyed 9 | 2 6 1 Worker 1 | . 1 . Builder 1 | . 1 . Tunneler 5 | 5 . . Hauler 1 | . 1 . Recycler 3 | 1 2 . Operator 2 | . 2 . Watcher 1 | . 1 . Grunt 9 | . 9 . Subdweller 3 | . . 3 Best Kill Streak 7 | 3 7 2 Combat Bots Only 2 | . 2 2 Max Kills in Single Turn 3 | 2 3 1 Gunslinging . | . . . Exploded 1 | . 1 1 Melee . | . . . Uniques/NPCs Destroyed . | . . . Combat | -11 -10 -10 -------- Run | Yrd Mat Sub Hostile Shots Fired 66 | . 34 32 Missed 23 | . 9 14 Hits 43 | . 25 18 Projectile 43 | . 25 18 AOE 12 | . . 12 Damage Taken 1144 | . 326 818 Core 264 | . 90 174 Absorbed by Shields . | . . . Core Remaining (%) 100 | 100 . . Volleys Fired 96 | 10 59 27 Largest 2 | 2 2 2 Hottest 112 | 60 86 112 Shots Fired 152 | 20 92 40 Gun 133 | 20 83 30 Cannon . | . . . Launcher 19 | . 9 10 Special . | . . . Kinetic 59 | 10 40 9 Thermal 74 | 10 43 21 Explosive 19 | . 9 10 Electromagnetic . | . . . Robot Hit Streak 14 | 6 14 11 Robot Miss Streak 4 | 1 2 4 Penetration Max . | . . . Secondary Targets 1 | . . 1 Max Gunslinging Chain 1 | . . 1 Shots Hit Robots 96 | 13 63 20 Core Hits 44 | 7 33 4 Critical Kills . | . . . Critical Parts Destroyed 1 | . 1 . Critical Strikes 4 | . 4 . Burn 3 | . 3 . Destroy 1 | . 1 . Melee Attacks 6 | . . 6 Impact 6 | . . 6 Slashing . | . . . Piercing . | . . . Sneak Attacks . | . . . Combat Hostiles . | . . . Follow-up Attacks . | . . . Damage Inflicted 2060 | 169 1227 664 Guns 1188 | 169 793 226 Cannons . | . . . Explosions 872 | . 434 438 Melee . | . . . Ramming . | . . . Kinetic 475 | 84 313 78 Thermal 713 | 85 480 148 Explosive 872 | . 434 438 Electromagnetic . | . . . Impact . | . . . Slashing . | . . . Piercing . | . . . Highest Corruption . | . . . Average Corruption . | . . . Corruption Purged . | . . . Corruption Blocked . | . . . Overload Shots . | . . . Overflow Damage 8 | . 7 1 Projectiles . | . . . Explosions 8 | . 7 1 Melee . | . . . Knockbacks . | . . . Impact . | . . . Kinetic . | . . . Secondary . | . . . Self-Inflicted Damage 14 | . . 14 Shots 1 | . . 1 Rammed . | . . . Targets Rammed . | . . . Kicked . | . . . Crushed . | . . . Highest Temperature 216 | . 216 16 Average Temperature 63 | . 64 10 Received Heat Transfer 201 | . 183 18 Siege Activations . | . . . Martial Activations . | . . . Shielding Activations . | . . . Robots Disrupted . | . . . Combat Hostiles . | . . . Robots Corrupted . | . . . Combat Hostiles . | . . . Parts Fried . | . . . Impact Corruptions . | . . . Robots Melted . | . . . Combat Hostiles . | . . . Parts Melted 1 | . 1 . Heat Transferred 2001 | 200 1431 370 Parts Sabotaged . | . . . Parts Stolen . | . . . Parts Stripped . | . . . Power Chain Reactions . | . . . Alert | -11 -10 -10 ------- Run | Yrd Mat Sub Maximum Alert Level . | . . . Low Security (%) 100 | 100 100 . Level 1 . | . . . Level 2 . | . . . Level 3 . | . . . Level 4 . | . . . Level 5 . | . . . High Security . | . . . Max Security . | . . . Peak Influence 155 | 10 155 . Initial . | . . . Average 55 | 1 71 . Influence Increases 369 | 30 339 . Destroy 0b10 Robot/C 180 | . 180 . Destroy 0b10 Robot/NC 70 | 30 40 . Destroy Leader 44 | . 44 . Successful Hack 17 | . 17 . Destroy Structure 13 | . 13 . Lose Combat Pursuer 45 | . 45 . Influence Decreases 369 | 30 184 155 Entered New Map 75 | . . 75 Time Decay 264 | 30 174 60 Lost Part 30 | . 10 20 Squads Dispatched 1 | . 1 . Investigation . | . . . Extermination . | . . . Reinforcement 1 | . 1 . Assault . | . . . Garrison . | . . . Intercept . | . . . Searches Triggered . | . . . Construction Impeded . | . . . Haulers Reinforced . | . . . Active Scanning Responses . | . . . Cargo Convoy Interrupts . | . . . Stealth | -11 -10 -10 --------- Run | Yrd Mat Sub Distress Signals 2 | . 2 . Communications Jammed . | . . . Distress Signals . | . . . Times Spotted 20 | . 15 5 Peak Tracking Total 3 | . 3 2 Tactical Retreats 2 | . 2 . Traps | -11 -10 -10 ------- Run | Yrd Mat Sub Traps Triggered . | . . . Indirectly . | . . . Trap Hack Attempts . | . . . Triggered . | . . . Disarmed . | . . . Reprogrammed . | . . . Reused . | . . . Traps Extracted . | . . . Installed . | . . . Triggered . | . . . Machines | -11 -10 -10 ---------- Run | Yrd Mat Sub Machines Disabled . | . . . Max in Single Turn . | . . . Machines Repaired . | . . . Machines Dismantled . | . . . Machines Sabotaged . | . . . Overloaded Fab Kills . | . . . Hacking | -11 -10 -10 --------- Run | Yrd Mat Sub Machines Accessed 2 | . 2 . Terminals 2 | . 2 . Fabricators . | . . . Repair Stations . | . . . Recycling Units . | . . . Scanalyzers . | . . . Garrison Access . | . . . Total Hacks 5 | . 5 . Successful 3 | . 3 . Failed 2 | . 2 . Catastrophic . | . . . Database Lockouts . | . . . Manual 6 | . 6 . Terminals 5 | . 5 . Fabricators . | . . . Repair Stations . | . . . Recycling Units . | . . . Scanalyzers . | . . . Garrison Access . | . . . Terminal Hacks 2 | . 2 . Robot Analysis 2 | . 2 . Fabricator Hacks . | . . . Repair Station Hacks . | . . . Recycling Unit Hacks . | . . . Scanalyzer . | . . . Garrison Access Hacks . | . . . Unauthorized Hacks 1 | . 1 . Terminals 1 | . 1 . Botnet 1 | . 1 . Fabricators . | . . . Repair Stations . | . . . Recycling Units . | . . . Scanalyzers . | . . . Garrison Access . | . . . Data Cores Recovered . | . . . Used . | . . . Hacking Detections 2 | . 2 . Full Trace Events . | . . . Feedback Events . | . . . Feedback Blocked . | . . . Robot Schematics Acquired . | . . . Robots Built . | . . . Authchips . | . . . Time . | . . . Total Robot Build Rating . | . . . Part Schematics Acquired . | . . . Parts Built . | . . . Authchips . | . . . Time . | . . . Total Part Build Rating . | . . . Parts Repaired . | . . . Time . | . . . Parts Recycled . | . . . Recycled Matter . | . . . Retrieved Matter . | . . . Retrieved Components . | . . . Parts Scanalyzed . | . . . Part Schematics Acquired . | . . . Parts Damaged . | . . . Bothacking | -11 -10 -10 ------------ Run | Yrd Mat Sub Used RIF Installer . | . . . Robots Hacked . | . . . Non-combat . | . . . Combat . | . . . Robot Hacks Applied . | . . . Relay Couplers Released . | . . . Fabnet Peak Effective % . | . . . Robots Rewired . | . . . Allies Hacked . | . . . Hacks Repelled . | . . . Allies | -11 -10 -10 -------- Run | Yrd Mat Sub Total Allies . | . . . Largest Group . | . . . Highest-Rated Group . | . . . Highest-Rated Ally . | . . . Total Orders . | . . . Ally Attacks . | . . . Total Damage . | . . . Kills . | . . . Allies Corrupted . | . . . Allies Melted . | . . . Intel | -11 -10 -10 ------- Run | Yrd Mat Sub Active Infowar (turns) 553 | . 451 102 Seismic 553 | . 451 102 Robot Analysis Total 2 | . 2 . Derelict Logs Recovered . | . . . Drone Launches . | . . . Drone Recoveries . | . . . Exploration | -11 -10 -10 ------------- Run | Yrd Mat Sub Turns Passed 807 | 142 469 196 Spaces Moved 430 | 103 237 90 Core 4 | 4 . . Treads . | . . . Legs . | . . . Wheels 426 | 99 237 90 Hover . | . . . Flight . | . . . Fastest Speed 50 | 50 80 95 Average Speed 95 | 83 96 106 Slowest Speed 110 | 95 110 110 Overloaded Moves . | . . . Propulsion Burnouts . | . . . Robots Hopped . | . . . Potential Cave-ins . | . . . Cave-ins Triggered . | . . . Exploration Rate (%) 14 | 4 29 10 Regions Visited 2 Branch Regions 1 Pre-discovered Areas . | . . . Known Exits Taken . | . . . Unknown Exits Taken 2 | 1 1 . Scrap Searched . | . . . Spaces Dug . | . . . Terrain Destroyed 74 | . 18 56 Melee . | . . . Projectile . | . . . AOE 74 | . 18 56 Terrain Rammed . | . . . Walls Destroyed . | . . . Machines Disabled . | . . . Actions | -11 -10 -10 --------- Run | Yrd Mat Sub Total 663 | 139 385 139 Wait 65 | . 65 . Move 428 | 102 236 90 Hop . | . . . Pick Up 30 | 17 9 4 Fast Attach 1 | . 1 . Attach 16 | 6 2 8 Detach . | . . . Swap 9 | 1 6 2 Drop 12 | 3 7 2 Fire 96 | 10 59 27 Melee 6 | . . 6 Ram . | . . . Kick . | . . . Crush . | . . . Escape Stasis . | . . . Rewire . | . . . Trap . | . . . Miscellaneous . | . . . Route ------- -11/Scrapyard -10/Materials (discovered 2 exits: [*Mat] / [*Sub]) -10/Subcaves (discovered 1 exit: [*Mat]) History --------- Turn | Location | Event 13 | -11/Scrapyard | Discovered new exit (range 16) 143 | -11/Scrapyard | Entered Materials 204 | -10/Materials | Discovered new exit (range 14) 314 | -10/Materials | Build established: Mutant 430 | -10/Materials | Discovered new exit (range 9) 612 | -10/Materials | Entered Subcaves 642 | -10/Subcaves | Discovered new exit (range 12) 646 | -10/Subcaves | Shifting Twisted Machinery released Sub. Power Source 646 | -10/Subcaves | Shifting Twisted Machinery released Scrap Shield 751 | -10/Subcaves | Ambushed by Subdweller buried in earth 773 | -10/Subcaves | Core integrity fell below 50% 777 | -10/Subcaves | Ambushed by Subdweller buried in earth 781 | -10/Subcaves | Core integrity fell below 20% 808 | -10/Subcaves | Destroyed by A7-CZD(R) with Subdweller Machine Gun Last Messages --------------- 00727_ The unstable cave ceiling collapses. 00727_ Acquired 17 matter. 00728_ Acquired 22 matter. 00731_ The unstable cave ceiling collapses. 00739_ Subatomizers dissect the Seismic Detector. 00752_ OA-T3W(R): "ARGHSUB!" 00756_ Assault Rifle destroyed. 00757_ OA-T3W(R) destroyed. 00764_ Wheel destroyed. 00764_ Scrap Shield destroyed. 00768_ Wheel destroyed. 00772_ Ion Engine destroyed. 00777_ Destroyed Scrap Shield. 00778_ A7-CZD(R): "ARGHSUB!" 00778_ Grenade Launcher destroyed. 00789_ Wheel destroyed. 00790_ MY-7RM(R) destroyed. 00790_ Switching to secondary target: A7-CZD(R). 00792_ Beam Rifle destroyed. Map ----- +----------------------------------------------------+ | ??????????????????##!!! #????????????????????????? | | ??????????????????#[*/ ##????????????????????????? | | ??????????????????# #?????????????????????????? | | ?????????????????## ##????????????????????????? | | ?????????????????# #????????????????????????? | | ?????????????????# # ###??????????????????????? | | ?????????????????## ! # #??????????????????????? | | ??????????????????# #??????????????????????? | | ??????????????????# & #??????????????????????? | | ??????????????????## & #??????????????????????? | | ??????????????????## #??????????????????????? | | ??????????????????# #??????????????????????? | | ??????????????????# ## #??????????????????????? | | ??????????????????### ###??????????????????????? | | ??????????????????## ##????????????????????????? | | ?????????????????## ###???????????????????????? | | ?????????????????#" ####????????????????????? | | ?????????????????#" ; ####?????????????????? | | ?????????????????#" ###???????????????? | | ?????????????????#" #???????????????? | | ?????????????????## ##??????????????? | | ??????????????????### #??????????????? | | ???????????????????## #??????????????? | | ???????????????????# #??????????????? | | ??????????????????## R #??????????????? | | ??????????????????# @ #??????????????? | | ??????????????????# #???????????????? | | ??????????????????# #??????????????? | | ?????????????????# #??????????????? | | ?????????????????#### ; ###??????????????? | | ????????????????????# ####????????????????? | | ???????????????????? ##???????????????????? | | ??????????????????? ####????????????????????? | | ?????????????????? ????????????????????????? | | ?????????????????# & ????????????????????????? | | ?????????????????# ????????????????????????? | | ?????????????????# ????????????????????????? | | ?????????????????# ????????????????????????? | | ?????????????????? ????????????????????????? | | ????????????????????? ????????????????????????? | | ??????????????????????? ?????????????????????????? | | ?????????????????????????????????????????????????? | | ?????????????????????????????????????????????????? | | ?????????????????????????????????????????????????? | | ?????????????????????????????????????????????????? | | ?????????????????????????????????????????????????? | | ?????????????????????????????????????????????????? | | ?????????????????????????????????????????????????? | | ?????????????????????????????????????????????????? | | ?????????????????????????????????????????????????? | +----------------------------------------------------+ Best States ------------- Heat Dissipation 25 Energy Generation 15 Energy Capacity 265 Matter Stores 300 Matter Capacity 300 Sight Range 16 Terrain Scan Density 10 Armor Coverage 800 Evasion (%) 44 Item Schematics ----------------- None Robot Schematics ------------------ None Fabricated ------------ Nothing Repaired ---------- Nothing Alien Tech Used ----------------- None Achievements -------------- None Challenges ------------ None Game ------ Seed FocalWaveMicroactuators Manual? 0 Play Time 00:12:33 Cumulative 362.5 hours Start 2025.06.05 @ 10:13:10 End 2025.06.05 @ 10:23:16 Sessions 1 Manual Loads 0 Difficulty Rogue Special Mode None Game No. 406 Rogue 406 Adventurer 0 Explorer 0 Win Type - Total 6 Types 3/1/1/1/0/0/0/0/0/0 Lore% 65 Gallery% 70 Achievement% 68 Wizard Run 0 Options --------- Layout 1 ASCII 0 Keyboard 0 Movement Numpad Keybinds 0 Fullscreen 1 Font 32/SmallcapsGlow Map View 50x35 Zoom Use 0% Tactical HUD 1 Map Filters NONE Filters NONE Steam 1 RUN: 4576cbef-5d3d-4a85-aa79-026811b9ba21